fUSD/lending_fUSD_20240619
["ID","MTS","AMOUNT","RATE_DAILY","PERIOD"]
[329883152,1718788242303,-483.72021764,0.00013698,2]
[329883154,1718788243171,-16.27978236,0.00013698,2]
[329883156,1718788243180,-269.83525308,0.00013698,2]
[329883190,1718788244282,-315.38689517,0.00012394,2]
[329883191,1718788244291,-230.16474692,0.00013698,2]
[329883192,1718788244300,-365.30525182,0.00013698,2]
[329883193,1718788244347,-4853.45619711,0.00012395,2]
[329883194,1718788244359,-1126.43968259,0.00012395,2]
[329883195,1718788244370,-297.53662989,0.00012395,2]
[329883196,1718788244430,-836.60016149,0.00012395,2]
[329883197,1718788244542,-10397.62039256,0.00012395,2]
[329883239,1718788248697,-727.95,0.00012395,2]
[329883240,1718788248709,-325.51564096,0.00012395,2]
[329883241,1718788248720,-515.80849288,0.00012395,2]
[329883242,1718788248940,-3431.15037639,0.00012395,2]
[329883243,1718788248954,-681.85116789,0.00012395,2]
[329883480,1718788374842,155.0,0.00013696,7]
[329883528,1718788386176,576.10840723,0.00013696,7]
[329883529,1718788396804,155.0,0.00013696,7]
[329883530,1718788406150,576.10840723,0.00013696,7]
[329883531,1718788416815,181.1102039,0.00013696,7]
[329883532,1718788422161,576.10840723,0.00013696,7]
[329883533,1718788442190,576.10840723,0.00013696,7]
[329883534,1718788456165,576.10840723,0.00013696,7]
[329883535,1718788474161,576.10840723,0.00013696,7]
[329883536,1718788492165,576.10840723,0.00013696,7]
[329883537,1718788514196,595.38633616,0.00013696,7]
[329883538,1718788603964,589.23,0.00010786,2]
[329883539,1718788673366,151.0,0.00020887,30]
[329883560,1718789043909,10000.0,0.00026,90]
[329883569,1718789119154,6175.8,0.00026,90]
[329883575,1718789186553,-27112.76897582,0.00025,30]
[329883576,1718789186587,-400.0,0.000257,30]
[329883577,1718789186615,-11787.7638215,0.00026,30]
[329883578,1718789186648,-1208.0,0.00026139,30]
[329883579,1718789186685,-150.0,0.00027045,120]
[329883580,1718789186711,-150.0,0.00027059,120]
[329883581,1718789187050,-2690.72,0.00027068,30]
[329883582,1718789187078,-1986.59083016,0.0002736,120]
[329883583,1718789187108,-2000.0,0.00027397,30]
[329883584,1718789187134,-2000.0,0.00027397,30]
[329883585,1718789187160,-2000.0,0.00027397,30]
[329883586,1718789187184,-2000.0,0.00027397,30]
[329883587,1718789187221,-2000.0,0.00027397,30]
[329883588,1718789187249,-2000.0,0.00027397,30]
[329883589,1718789187277,-2000.0,0.00027397,30]
[329883590,1718789187304,-1555.64824657,0.00027397,30]
[329883591,1718789187334,-237.72,0.00027397,30]
[329883592,1718789187362,-927.04,0.00027397,30]
[329883593,1718789187391,-927.04,0.00027397,30]
[329883594,1718789187416,-927.04,0.00027397,30]
[329883595,1718789187441,-927.04,0.00027397,30]
[329883596,1718789187468,-927.04,0.00027397,30]
[329883597,1718789187496,-927.04,0.00027397,30]
[329883598,1718789187522,-927.04,0.00027397,30]
[329883599,1718789187548,-927.04,0.00027397,30]
[329883600,1718789187574,-927.04,0.00027397,30]
[329883601,1718789187605,-927.04,0.00027397,30]
[329883602,1718789187631,-927.04,0.00027397,30]
[329883603,1718789187659,-927.04,0.00027397,30]
[329883604,1718789187685,-927.04,0.00027397,30]
[329883605,1718789187709,-927.04,0.00027397,30]
[329883606,1718789187734,-927.04,0.00027397,30]
[329883607,1718789187759,-927.04,0.00027397,30]
[329883608,1718789187785,-927.04,0.00027397,30]
[329883609,1718789187810,-927.04,0.00027397,30]
[329883610,1718789187834,-927.04,0.00027397,30]
[329883611,1718789187859,-927.04,0.00027397,30]
[329883612,1718789187887,-927.04,0.00027397,30]
[329883613,1718789187912,-927.04,0.00027397,30]
[329883614,1718789187936,-927.04,0.00027397,30]
[329883615,1718789187960,-927.20694748,0.00027397,30]
[329883616,1718789187984,-200.0,0.00027397,60]
[329883617,1718789188021,-200.0,0.00027405,120]
[329883618,1718789188047,-150.0,0.00027528,120]
[329883619,1718789188072,-237.72,0.00027534,30]
[329883620,1718789188098,-237.72,0.00027671,30]
[329883621,1718789188123,-218.862516,0.00027726,120]
[329883622,1718789188148,-237.72,0.00027808,30]
[329883623,1718789188176,-237.72,0.00027945,30]
[329883624,1718789188203,-1799.48990321,0.00028,30]
[329883625,1718789188228,-984.12791879,0.00028055,30]
[329883626,1718789188254,-237.72,0.00028082,30]
[329883627,1718789188297,-181.99631576,0.0002815,120]
[329883628,1718789188324,-984.12791879,0.00028164,30]
[329883629,1718789188350,-150.0,0.00028204,120]
[329883630,1718789188376,-237.72,0.00028219,30]
[329883631,1718789188403,-984.12791879,0.00028301,30]
[329883632,1718789188428,-237.72,0.00028356,30]
[329883633,1718789188455,-984.12791879,0.00028411,30]
[329883634,1718789188482,-150.0,0.00028485,120]
[329883635,1718789188507,-237.72,0.00028493,30]
[329883636,1718789188533,-984.12791879,0.00028521,30]
[329883637,1718789188558,-237.72,0.0002863,30]
[329883638,1718789188584,-150.0,0.00028656,120]
[329883639,1718789188610,-984.12791879,0.00028658,30]
[329883640,1718789188636,-237.72,0.00028767,30]
[329883641,1718789188664,-984.12791879,0.00028767,30]
[329883642,1718789188689,-984.12791879,0.00028877,30]
[329883643,1718789188714,-314.333655,0.00028886,120]
[329883644,1718789188739,-237.72,0.00028904,30]
[329883645,1718789188764,-621.93431348,0.00029,30]
[329883646,1718789188789,-891.52281342,0.00029,120]
[329883647,1718789188814,-1800.0,0.00029,30]
[329883648,1718789188839,-4037.65775641,0.00029,120]
[329883649,1718789188864,-984.12791879,0.00029014,30]
[329883650,1718789188896,-237.72,0.00029041,30]
[329883651,1718789188922,-984.12791879,0.00029123,30]
[329883652,1718789188948,-237.72,0.00029178,30]
[329883653,1718789188973,-984.12791879,0.00029233,30]
[329883654,1718789188999,-150.0,0.00029293,120]
[329883655,1718789189025,-152.48,0.000293,31]
[329883656,1718789189049,-152.48,0.000293,31]
[329883657,1718789189074,-237.72,0.00029315,30]
[329883658,1718789189098,-984.12791879,0.0002937,30]
[329883659,1718789189123,-237.72,0.00029452,30]
[329883660,1718789189148,-150.0,0.00029468,120]
[329883661,1718789189173,-984.12791879,0.00029479,30]
[329883662,1718789189198,-320.059655,0.000295,30]
[329883663,1718789189225,-237.72,0.00029589,30]
[329883664,1718789189250,-984.12791879,0.00029589,30]
[329883665,1718789189277,-150.0,0.00029706,120]
[329883666,1718789189304,-237.72,0.00029726,30]
[329883667,1718789189330,-984.12791879,0.00029726,30]
[329883668,1718789189354,-480.089483,0.000298,30]
[329883669,1718789189381,-237.72,0.00029863,30]
[329883670,1718789189406,-189.68965226,0.00029863,90]
[329883671,1718789189431,-819.18414085,0.0002988,30]
[329883672,1718789189458,-150.0,0.00029926,120]
[329883673,1718789189483,-1145.33869237,0.00029999,30]
[329883674,1718789189507,-237.72,0.00029999,30]
[329883675,1718789189534,-662.65384116,0.0003,120]
[329883676,1718789189558,-640.11931,0.0003,30]
[329883677,1718789189582,-3000.0,0.0003,30]
[329883678,1718789189606,-3000.0,0.0003,35]
[329883679,1718789189630,-93628.81752951,0.0003,30]
[329883680,1718789189655,-907.88087586,0.0003,120]
[329883681,1718789189679,-1851.25306733,0.0003,120]
[329883682,1718789189933,-654.93966272,0.0003,120]
[329883683,1718789189961,-1799.99999909,0.0003,31]
[329883684,1718789189986,-1000.0,0.0003,120]
[329883685,1718789190009,-217.91,0.0003,120]
[329883686,1718789190040,-150.0,0.00030097,120]
[329883687,1718789190065,-150.0,0.00030111,120]
[329883688,1718789190090,-237.72,0.00030136,30]
[329883689,1718789190114,-200.0,0.00030137,60]
[329883690,1718789214445,559.76,0.00010792,2]
[329883709,1718789410698,150.0,0.00013979,7]
[329883710,1718789411716,150.0,0.00013999,7]
[329883711,1718789412823,150.0,0.00013999,7]
[329883712,1718789413759,150.0,0.00013999,7]
[329883713,1718789414780,150.0,0.00013999,7]
[329883714,1718789429405,1732.34423458,0.00013999,7]
[329883744,1718789432415,-610.90266659,0.00011668,2]
[329883745,1718789432426,-27.78563776,0.00011767,2]
[329883746,1718789432438,-484.28691844,0.00011767,2]
[329883747,1718789432450,-487.9274438,0.00011767,2]
[329883748,1718789432459,-206.29106117,0.00011768,2]
[329883749,1718789432469,-2000.0,0.00012,2]
[329883750,1718789432481,-4211.12040259,0.00012393,2]
[329883751,1718789432491,-6065.7241458,0.00012395,2]
[329883752,1718789432502,-710.59577829,0.00012395,2]
[329883753,1718789432611,-482.87677638,0.00012395,2]
[329883754,1718789432759,-16222.93816104,0.00012395,2]
[329883755,1718789432769,-2832.56645546,0.00012395,2]
[329883756,1718789432778,-499.86,0.00012601,2]
[329883757,1718789432789,-161.26,0.00012634,2]
[329883758,1718789432799,-1000.0,0.00012648,2]
[329883759,1718789432808,-250.0,0.00012669,2]
[329883760,1718789432817,-2000.0,0.00013,2]
[329883761,1718789432827,-559.76,0.00013056,2]
[329883762,1718789432836,-1022.93534286,0.00013424,2]
[329883763,1718789432845,-499.99,0.00013461,2]
[329883764,1718789432856,-150.99,0.00013461,2]
[329883765,1718789432866,-3000.0,0.0001356,2]
[329883766,1718789432876,-500.0,0.00013588,2]
[329883767,1718789432885,-7940.79215196,0.00013598,2]
[329883768,1718789432894,-154.92455301,0.00013598,2]
[329883769,1718789432904,-327.14049148,0.00013598,2]
[329883770,1718789432914,-190.85369923,0.00013598,2]
[329883771,1718789432923,-150.0,0.000136,2]
[329883772,1718789432932,-154.92455299,0.00013676,2]
[329883773,1718789432941,-2528.3440342,0.00013687,2]
[329883774,1718789432950,-1536.5534824,0.00013687,2]
[329883775,1718789432960,-195.76537333,0.00013688,2]
[329883776,1718789432969,-5589.44149372,0.00013696,2]
[329883777,1718789432978,-68954.12040117,0.00013696,2]
[329883778,1718789432988,-543.46593808,0.00013696,2]
[329883779,1718789432997,-7601.36,0.00013697,2]
[329883780,1718789433006,-154.1262298,0.00013698,2]
[329883781,1718789433015,-2000.0,0.00013698,2]
[329883782,1718789433024,-200.0,0.00013698,2]
[329883783,1718789433034,-736.7,0.00013698,2]
[329883784,1718789433043,-1152.17,0.00013698,2]
[329883785,1718789433053,-500.0,0.00013698,2]
[329883786,1718789433062,-519.55032749,0.00013698,2]
[329883787,1718789433071,-686.21,0.00013698,2]
[329883788,1718789433080,-500.0,0.00013698,2]
[329883789,1718789433091,-514.49,0.00013698,2]
[329883790,1718789433103,-500.0,0.00013698,2]
[329883791,1718789433112,-500.0,0.00013698,2]
[329883792,1718789433123,-500.0,0.00013698,2]
[329883793,1718789433132,-635.1,0.00013698,2]
[329883794,1718789433142,-514.73,0.00013698,2]
[329883795,1718789433151,-517.91,0.00013698,2]
[329883796,1718789433160,-500.0,0.00013698,2]
[329883797,1718789433170,-500.0,0.00013698,2]
[329883798,1718789433180,-500.0,0.00013698,2]
[329883799,1718789433189,-500.0,0.00013698,2]
[329883800,1718789433200,-510.11,0.00013698,2]
[329883801,1718789433209,-500.0,0.00013698,2]
[329883802,1718789433219,-721.8,0.00013698,2]
[329883803,1718789433228,-500.0,0.00013698,2]
[329883804,1718789433238,-500.0,0.00013698,2]
[329883805,1718789433247,-500.0,0.00013698,2]
[329883806,1718789433257,-1258.6,0.00013698,2]
[329883807,1718789433266,-500.0,0.00013698,2]
[329883808,1718789433276,-500.0,0.00013698,2]
[329883809,1718789433286,-500.0,0.00013698,2]
[329883810,1718789433297,-500.0,0.00013698,2]
[329883811,1718789433307,-500.0,0.00013698,2]
[329883812,1718789433316,-614.74113951,0.00013698,2]
[329883813,1718789433326,-500.0,0.00013698,2]
[329883814,1718789433335,-616.44,0.00013698,2]
[329883815,1718789433345,-554.7,0.00013698,2]
[329883816,1718789433357,-500.0,0.00013698,2]
[329883817,1718789433369,-180.71761111,0.00013698,2]
[329883818,1718789433381,-500.0,0.00013698,2]
[329883819,1718789433391,-500.0,0.00013698,2]
[329883820,1718789433401,-500.0,0.00013698,2]
[329883821,1718789433411,-500.0,0.00013698,2]
[329883822,1718789433421,-500.0,0.00013698,2]
[329883823,1718789433432,-776.83,0.00013698,2]
[329883824,1718789433444,-614.11,0.00013698,2]
[329883825,1718789433454,-917.69,0.00013698,2]
[329883826,1718789433463,-500.0,0.00013698,2]
[329883827,1718789433474,-500.0,0.00013698,2]
[329883828,1718789433483,-500.0,0.00013698,2]
[329883829,1718789433493,-500.0,0.00013698,2]
[329883830,1718789433502,-500.0,0.00013698,2]
[329883831,1718789433513,-500.0,0.00013698,2]
[329883832,1718789433522,-826.49,0.00013698,2]
[329883833,1718789433531,-500.0,0.00013698,2]
[329883834,1718789433541,-500.0,0.00013698,2]
[329883835,1718789433551,-500.0,0.00013698,2]
[329883836,1718789433560,-500.0,0.00013698,2]
[329883837,1718789433569,-669.7,0.00013698,2]
[329883838,1718789433578,-500.0,0.00013698,2]
[329883839,1718789433588,-500.0,0.00013698,2]
[329883840,1718789433597,-500.0,0.00013698,2]
[329883841,1718789433607,-596.86,0.00013698,2]
[329883842,1718789433616,-500.0,0.00013698,2]
[329883843,1718789433627,-500.0,0.00013698,2]
[329883844,1718789433636,-500.0,0.00013698,2]
[329883845,1718789433645,-500.0,0.00013698,2]
[329883846,1718789433653,-500.0,0.00013698,2]
[329883847,1718789433663,-922.14,0.00013698,2]
[329883848,1718789433672,-997.11,0.00013698,2]
[329883849,1718789433682,-555.28,0.00013698,2]
[329883850,1718789433691,-500.0,0.00013698,2]
[329883851,1718789433700,-500.0,0.00013698,2]
[329883852,1718789433710,-500.0,0.00013698,2]
[329883853,1718789433719,-500.0,0.00013698,2]
[329883854,1718789433727,-296.20867588,0.00013698,2]
[329883855,1718789433737,-500.0,0.00013698,2]
[329883856,1718789433746,-500.0,0.00013698,2]
[329883857,1718789433755,-500.0,0.00013698,2]
[329883858,1718789433764,-528.62,0.00013698,2]
[329883859,1718789433774,-507.6,0.00013698,2]
[329883860,1718789433783,-532.56,0.00013698,2]
[329883861,1718789433792,-1000.0,0.00013698,2]
[329883862,1718789433801,-500.0,0.00013698,2]
[329883863,1718789433811,-500.0,0.00013698,2]
[329883864,1718789433820,-500.0,0.00013698,2]
[329883865,1718789433829,-500.0,0.00013698,2]
[329883866,1718789433839,-500.0,0.00013698,2]
[329883867,1718789433848,-500.0,0.00013698,2]
[329883868,1718789433857,-728.96,0.00013698,2]
[329883869,1718789433867,-596.96,0.00013698,2]
[329883870,1718789433880,-598.66,0.00013698,2]
[329883871,1718789433889,-784.66,0.00013698,2]
[329883872,1718789433899,-500.0,0.00013698,2]
[329883873,1718789433909,-500.0,0.00013698,2]
[329883874,1718789433918,-500.0,0.00013698,2]
[329883875,1718789433928,-619.57,0.00013698,2]
[329883876,1718789433937,-778.58,0.00013698,2]
[329883877,1718789433947,-657.53,0.00013698,2]
[329883878,1718789433957,-1102.09,0.00013698,2]
[329883879,1718789433967,-500.0,0.00013698,2]
[329883880,1718789433976,-740.94,0.00013698,2]
[329883881,1718789433987,-500.0,0.00013698,2]
[329883882,1718789433996,-500.0,0.00013698,2]
[329883883,1718789434006,-1072.36,0.00013698,2]
[329883884,1718789434015,-500.0,0.00013698,2]
[329883885,1718789434025,-500.0,0.00013698,2]
[329883886,1718789434034,-500.0,0.00013698,2]
[329883887,1718789434043,-708.87,0.00013698,2]
[329883888,1718789434052,-500.0,0.00013698,2]
[329883889,1718789434062,-500.0,0.00013698,2]
[329883890,1718789434071,-500.0,0.00013698,2]
[329883891,1718789434081,-567.78,0.00013698,2]
[329883892,1718789434091,-559.73941471,0.00013698,2]
[329883893,1718789434101,-500.0,0.00013698,2]
[329883894,1718789434110,-500.0,0.00013698,2]
[329883895,1718789434121,-500.0,0.00013698,2]
[329883896,1718789434130,-500.0,0.00013698,2]
[329883897,1718789434140,-500.0,0.00013698,2]
[329883898,1718789434149,-606.88866211,0.00013698,2]
[329883899,1718789434158,-500.0,0.00013698,2]
[329883900,1718789434167,-1305.39,0.00013698,2]
[329883901,1718789434176,-704.8,0.00013698,2]
[329883902,1718789434185,-1243.58,0.00013698,2]
[329883903,1718789434456,-500.0,0.00013698,2]
[329883904,1718789434466,-500.0,0.00013698,2]
[329883905,1718789434475,-634.13,0.00013698,2]
[329883906,1718789434485,-500.0,0.00013698,2]
[329883907,1718789434494,-516.83,0.00013698,2]
[329883908,1718789434503,-1226.18,0.00013698,2]
[329883909,1718789434513,-688.88,0.00013698,2]
[329883910,1718789434522,-500.0,0.00013698,2]
[329883911,1718789434537,-500.0,0.00013698,2]
[329883912,1718789434546,-762.03,0.00013698,2]
[329883913,1718789434556,-61.19885572,0.00013698,2]
[329883914,1718789434578,-438.80114428,0.00013698,2]
[329883915,1718789434588,-458.96384216,0.00013698,2]
[329883916,1718789434600,-1496.38615784,0.00013698,2]
[329883917,1718789434609,-1573.8,0.00013698,2]
[329883918,1718789434621,-1393.0,0.00013698,2]
[329883919,1718789434630,-496.40980867,0.00013698,2]
[329883920,1718789434640,-691.09,0.00013698,2]
[329883921,1718789434649,-880.04,0.00013698,2]
[329883922,1718789434659,-570.09,0.00013698,2]
[329883923,1718789434669,-738.18,0.00013698,2]
[329883924,1718789434679,-1166.96,0.00013698,2]
[329883925,1718789434689,-1115.04,0.00013698,2]
[329883926,1718789434698,-1904.08,0.00013698,2]
[329883927,1718789434707,-824.56,0.00013698,2]
[329883928,1718789434717,-500.0,0.00013698,2]
[329883929,1718789434726,-500.0,0.00013698,2]
[329883930,1718789434735,-500.0,0.00013698,2]
[329883931,1718789434745,-288.85744333,0.00013698,2]
[329883932,1718789434754,-500.0,0.00013698,2]
[329883933,1718789434763,-1304.46,0.00013698,2]
[329883934,1718789434773,-1259.44,0.00013698,2]
[329883935,1718789434781,-500.0,0.00013698,2]
[329883936,1718789434790,-500.0,0.00013698,2]
[329883937,1718789434799,-500.0,0.00013698,2]
[329883938,1718789434809,-500.0,0.00013698,2]
[329883939,1718789434818,-1612.4,0.00013698,2]
[329883940,1718789434827,-500.0,0.00013698,2]
[329883941,1718789434836,-500.0,0.00013698,2]
[329883942,1718789434847,-500.0,0.00013698,2]
[329883943,1718789434858,-943.59,0.00013698,2]
[329883944,1718789434867,-500.0,0.00013698,2]
[329883945,1718789434877,-10000.0,0.00013698,2]
[329883946,1718789434886,-1039.93,0.00013698,2]
[329883947,1718789434895,-500.0,0.00013698,2]
[329883948,1718789434905,-500.0,0.00013698,2]
[329883949,1718789434914,-876.39,0.00013698,2]
[329883950,1718789434923,-1216.39,0.00013698,2]
[329883951,1718789434932,-500.0,0.00013698,2]
[329883952,1718789434941,-500.0,0.00013698,2]
[329883953,1718789434950,-1262.81,0.00013698,2]
[329883954,1718789434959,-941.4,0.00013698,2]
[329883955,1718789434968,-500.0,0.00013698,2]
[329883956,1718789434978,-500.0,0.00013698,2]
[329883957,1718789434987,-500.0,0.00013698,2]
[329883958,1718789434996,-500.0,0.00013698,2]
[329883959,1718789435005,-1689.41,0.00013698,2]
[329883960,1718789435014,-500.0,0.00013698,2]
[329883961,1718789435023,-1144.67,0.00013698,2]
[329883962,1718789435032,-1513.94,0.00013698,2]
[329883963,1718789435042,-994.41,0.00013698,2]
[329883964,1718789435051,-500.0,0.00013698,2]
[329883965,1718789435059,-500.0,0.00013698,2]
[329883966,1718789435069,-1483.38,0.00013698,2]
[329883967,1718789435078,-1151.94,0.00013698,2]
[329883968,1718789435088,-930.22425278,0.00013698,2]
[329883974,1718789438653,-217.93574722,0.00013698,2]
[329883975,1718789438663,-500.0,0.00013698,2]
[329883976,1718789438673,-2306.78,0.00013698,2]
[329883977,1718789438683,-5000.0,0.00013698,2]
[329883978,1718789438692,-502.88,0.00013698,2]
[329883979,1718789438702,-500.0,0.00013698,2]
[329883980,1718789438711,-1184.9,0.00013698,2]
[329883981,1718789438721,-1047.96,0.00013698,2]
[329883982,1718789438730,-1444.02,0.00013698,2]
[329883983,1718789438740,-1020.22,0.00013698,2]
[329883984,1718789438750,-1105.31,0.00013698,2]
[329883985,1718789438759,-1139.06,0.00013698,2]
[329883986,1718789438769,-1958.15,0.00013698,2]
[329883987,1718789438778,-2235.36,0.00013698,2]
[329883988,1718789438788,-500.0,0.00013698,2]
[329883989,1718789438797,-500.0,0.00013698,2]
[329883990,1718789438808,-500.0,0.00013698,2]
[329883991,1718789438817,-429.99,0.00013698,2]
[329883992,1718789438827,-871.81,0.00013698,2]
[329883993,1718789438835,-887.47,0.00013698,2]
[329883994,1718789438845,-500.0,0.00013698,2]
[329883995,1718789438854,-500.0,0.00013698,2]
[329883996,1718789438864,-996.68,0.00013698,2]
[329883997,1718789438874,-1408.85,0.00013698,2]
[329883998,1718789438883,-1141.56,0.00013698,2]
[329883999,1718789438893,-500.0,0.00013698,2]
[329884000,1718789438903,-500.0,0.00013698,2]
[329884001,1718789438912,-751.34,0.00013698,2]
[329884002,1718789438921,-2057.13,0.00013698,2]
[329884003,1718789438931,-1566.06,0.00013698,2]
[329884004,1718789438942,-662.15,0.00013698,2]
[329884005,1718789438951,-500.0,0.00013698,2]
[329884006,1718789438961,-1871.7,0.00013698,2]
[329884007,1718789438971,-500.0,0.00013698,2]
[329884009,1718789438984,-500.0,0.00013698,2]
[329884011,1718789438993,-617.82,0.00013698,2]
[329884013,1718789439003,-500.0,0.00013698,2]
[329884016,1718789439013,-1104.79,0.00013698,2]
[329884018,1718789439023,-2002.12,0.00013698,2]
[329884020,1718789439032,-500.0,0.00013698,2]
[329884022,1718789439042,-949.31,0.00013698,2]
[329884023,1718789439052,-1220.52,0.00013698,2]
[329884024,1718789439062,-874.89,0.00013698,2]
[329884025,1718789439073,-573.21,0.00013698,2]
[329884026,1718789439083,-500.0,0.00013698,2]
[329884027,1718789439093,-904.97,0.00013698,2]
[329884028,1718789439103,-500.0,0.00013698,2]
[329884029,1718789439113,-1030.72,0.00013698,2]
[329884030,1718789439123,-500.0,0.00013698,2]
[329884031,1718789439133,-500.0,0.00013698,2]
[329884032,1718789439144,-500.0,0.00013698,2]
[329884033,1718789439154,-500.0,0.00013698,2]
[329884034,1718789439164,-500.0,0.00013698,2]
[329884035,1718789439174,-937.81,0.00013698,2]
[329884036,1718789439185,-765.39,0.00013698,2]
[329884037,1718789439195,-1248.87,0.00013698,2]
[329884038,1718789439206,-646.42,0.00013698,2]
[329884039,1718789439217,-1261.24,0.00013698,2]
[329884040,1718789439227,-500.0,0.00013698,2]
[329884041,1718789439237,-500.0,0.00013698,2]
[329884042,1718789439247,-500.0,0.00013698,2]
[329884043,1718789439258,-500.0,0.00013698,2]
[329884044,1718789439270,-1446.65,0.00013698,2]
[329884045,1718789439279,-500.0,0.00013698,2]
[329884046,1718789439290,-500.0,0.00013698,2]
[329884047,1718789439300,-714.72,0.00013698,2]
[329884048,1718789439310,-857.68,0.00013698,2]
[329884049,1718789439320,-537.12,0.00013698,2]
[329884050,1718789439330,-509.79,0.00013698,2]
[329884051,1718789439340,-500.0,0.00013698,2]
[329884052,1718789439350,-559.16,0.00013698,2]
[329884053,1718789439361,-1506.15,0.00013698,2]
[329884054,1718789439372,-788.48,0.00013698,2]
[329884055,1718789439383,-1506.89,0.00013698,2]
[329884056,1718789439394,-1148.16,0.00013698,2]
[329884057,1718789439403,-794.3,0.00013698,2]
[329884058,1718789439413,-500.0,0.00013698,2]
[329884059,1718789439422,-764.72,0.00013698,2]
[329884060,1718789439434,-500.0,0.00013698,2]
[329884061,1718789439448,-598.12,0.00013698,2]
[329884062,1718789439469,-694.16,0.00013698,2]
[329884063,1718789439481,-500.0,0.00013698,2]
[329884064,1718789439492,-500.0,0.00013698,2]
[329884065,1718789439502,-2491.62,0.00013698,2]
[329884066,1718789439513,-500.0,0.00013698,2]
[329884067,1718789439524,-500.0,0.00013698,2]
[329884068,1718789439535,-1179.08,0.00013698,2]
[329884069,1718789439547,-637.13,0.00013698,2]
[329884070,1718789439557,-500.0,0.00013698,2]
[329884071,1718789439568,-500.0,0.00013698,2]
[329884072,1718789439579,-500.0,0.00013698,2]
[329884073,1718789439589,-731.26,0.00013698,2]
[329884074,1718789439600,-1230.76,0.00013698,2]
[329884075,1718789439611,-1667.25,0.00013698,2]
[329884076,1718789439621,-500.0,0.00013698,2]
[329884077,1718789439633,-587.95,0.00013698,2]
[329884078,1718789439643,-2035.2,0.00013698,2]
[329884079,1718789439654,-1093.73,0.00013698,2]
[329884080,1718789439664,-1018.25,0.00013698,2]
[329884081,1718789439675,-999.52,0.00013698,2]
[329884082,1718789439686,-500.0,0.00013698,2]
[329884083,1718789439696,-1049.04,0.00013698,2]
[329884084,1718789439706,-728.51,0.00013698,2]
[329884085,1718789439716,-1043.47,0.00013698,2]
[329884086,1718789439727,-500.0,0.00013698,2]
[329884087,1718789439737,-500.0,0.00013698,2]
[329884088,1718789439748,-980.3,0.00013698,2]
[329884089,1718789439760,-1311.55,0.00013698,2]
[329884090,1718789439771,-1016.38,0.00013698,2]
[329884091,1718789439781,-1726.2,0.00013698,2]
[329884092,1718789439792,-1223.17,0.00013698,2]
[329884093,1718789439802,-634.55,0.00013698,2]
[329884094,1718789439812,-500.0,0.00013698,2]
[329884095,1718789439823,-1738.23,0.00013698,2]
[329884096,1718789439834,-1486.74,0.00013698,2]
[329884097,1718789439844,-500.0,0.00013698,2]
[329884098,1718789439855,-1324.32,0.00013698,2]
[329884099,1718789439865,-1751.35,0.00013698,2]
[329884100,1718789439878,-1030.9,0.00013698,2]
[329884101,1718789439889,-500.0,0.00013698,2]
[329884102,1718789439900,-500.0,0.00013698,2]
[329884103,1718789439910,-500.0,0.00013698,2]